bitfinex-derivatives/quotes_BTCF0:USTF0_20240814
["timestamp","ask_amount","ask_price","bid_price","bid_amount"]
[1723662373022,0.43956839,59123.0,59122.0,0.05559218]
[1723662373520,0.43956839,59123.0,59122.0,0.005]
[1723662374317,1.79336139,59123.0,59122.0,0.012]
[1723662374524,1.80424325,59123.0,59122.0,0.012]
[1723662374730,0.81225025,59123.0,59122.0,0.012]
[1723662375022,0.80136839,59123.0,59122.0,0.096554]
[1723662375425,0.80136839,59123.0,59122.0,0.14714618]
[1723662375620,0.80136839,59123.0,59122.0,0.096554]
[1723662376511,0.80136839,59123.0,59122.0,0.14714618]
[1723662376715,0.71681539,59123.0,59122.0,0.096554]
[1723662376915,0.25601539,59123.0,59122.0,1.41958222]
[1723662377124,0.00025376,59129.0,59128.0,0.16909]
[1723662377427,0.2539537,59129.0,59128.0,0.537145]
[1723662378313,0.2539537,59129.0,59128.0,0.62130474]
[1723662378725,0.2559537,59129.0,59128.0,0.62130474]
[1723662379225,0.2559537,59129.0,59128.0,0.70716189]
[1723662379828,0.2539537,59129.0,59128.0,0.70916189]
[1723662380226,0.2539537,59129.0,59128.0,0.71216189]
[1723662381128,0.2539537,59129.0,59128.0,0.41956189]
[1723662381334,0.2539537,59129.0,59128.0,0.34624327]
[1723662381719,0.3639537,59129.0,59128.0,0.089545]
[1723662382126,0.3639537,59129.0,59128.0,0.15691574]
[1723662382429,0.3639537,59129.0,59128.0,0.089545]
[1723662382627,0.3639537,59129.0,59128.0,0.087545]
[1723662382832,0.3639537,59129.0,59128.0,0.089545]
[1723662383129,0.4484977,59129.0,59128.0,0.089545]
[1723662383327,0.4484977,59129.0,59128.0,0.086545]
[1723662383527,0.4484977,59129.0,59128.0,0.089545]
[1723662384028,0.2539537,59129.0,59128.0,0.089545]
[1723662384229,0.2539537,59129.0,59128.0,0.086545]
[1723662384428,0.2539537,59129.0,59128.0,0.087545]
[1723662384628,0.2539537,59129.0,59128.0,0.17175481]
[1723662385036,0.2539537,59129.0,59128.0,0.17375481]
[1723662385331,0.2539537,59129.0,59128.0,0.26003883]
[1723662385826,0.2539537,59129.0,59128.0,0.17375481]
[1723662386027,0.2539537,59129.0,59128.0,0.089545]
[1723662386223,0.2539537,59129.0,59128.0,0.26009781]
[1723662386422,0.2539537,59129.0,59128.0,0.3157452]
[1723662387334,0.2539537,59129.0,59128.0,0.41680872]
[1723662388330,0.2539537,59129.0,59128.0,0.3157452]
[1723662389732,0.2539537,59129.0,59128.0,0.41680872]
[1723662390530,0.2539537,59129.0,59128.0,0.77760872]
[1723662390731,0.2539537,59129.0,59128.0,1.15475372]
[1723662390932,0.2539537,59129.0,59128.0,1.06992412]
[1723662391630,0.2539537,59129.0,59128.0,0.9688606]
[1723662393832,0.2539537,59129.0,59128.0,0.6762606]
[1723662394040,0.3739537,59129.0,59128.0,0.1754606]
[1723662394241,0.3739537,59129.0,59128.0,0.27666714]
[1723662394444,0.2539537,59129.0,59128.0,0.1754606]
[1723662396839,0.2539537,59129.0,59128.0,0.27666714]
[1723662397136,0.2539537,59129.0,59128.0,0.4200056]
[1723662397437,0.2539537,59129.0,59128.0,0.3354606]
[1723662398246,0.2539537,59129.0,59128.0,0.43666129]
[1723662399148,0.2539537,59129.0,59128.0,0.3354606]
[1723662399333,0.2539537,59129.0,59128.0,0.43665757]
[1723662399846,0.2539537,59129.0,59128.0,0.43708659]
[1723662401048,0.2450437,59129.0,59128.0,0.52163159]
[1723662401346,0.2450437,59129.0,59128.0,1.54167741]
[1723662401540,0.2450437,59129.0,59128.0,1.39435815]
[1723662401741,0.2450437,59129.0,59128.0,1.54167116]
[1723662403040,0.2450437,59129.0,59128.0,0.94976616]
[1723662403242,0.2450437,59129.0,59128.0,0.94976572]
[1723662403441,0.4595877,59129.0,59128.0,0.23865719]
[1723662403647,0.9669477,59129.0,59128.0,0.17573316]
[1723662403958,0.084545,59128.0,59124.0,0.08438854]
[1723662404141,0.377148,59126.0,59125.0,0.06751745]
[1723662404447,0.36447647,59126.0,59125.0,0.06752661]
[1723662404650,1.27187647,59126.0,59125.0,0.06752661]
[1723662405040,1.35642447,59126.0,59125.0,0.06752661]
[1723662405242,1.35642447,59126.0,59124.0,0.06752661]
[1723662405243,0.08455,59125.0,59124.0,0.06752661]
[1723662405545,0.80852695,59125.0,59124.0,0.06752661]
[1723662405748,0.084551,59124.0,59123.0,0.06752661]
[1723662405949,0.184551,59124.0,59123.0,0.06752661]
[1723662406253,1.34512795,59124.0,59123.0,0.06752661]
[1723662406448,0.084554,59122.0,59119.0,0.16894654]
[1723662406649,0.445357,59120.0,59118.0,0.00025376]
[1723662406958,0.59959769,59119.0,59118.0,0.00025376]
[1723662407251,0.97939769,59119.0,59118.0,0.00025376]
[1723662408448,0.97939769,59119.0,59118.0,0.06773352]
[1723662409447,0.97939769,59119.0,59118.0,0.00025376]
[1723662409652,0.97939769,59119.0,59118.0,0.00225376]
[1723662409849,0.97939769,59119.0,59118.0,0.06973352]
[1723662409850,1.06395569,59119.0,59118.0,0.06973352]
[1723662410153,1.48683769,59119.0,59118.0,0.05059628]
[1723662410344,0.77483969,59119.0,59117.0,0.05057841]
[1723662410548,0.084562,59117.0,59115.0,0.15202468]
[1723662411045,0.25382428,59116.0,59115.0,0.16248865]
[1723662411747,0.25382428,59116.0,59115.0,0.09502697]
[1723662412052,0.25466044,59118.0,59117.0,0.087561]
[1723662412255,0.25466044,59119.0,59118.0,0.08456]
[1723662412552,0.3608,59120.0,59119.0,0.084558]
[1723662413052,0.61424893,59120.0,59119.0,0.084558]
[1723662413753,0.61424893,59120.0,59119.0,0.088558]
[1723662413952,0.61424893,59120.0,59119.0,0.091558]
[1723662415752,0.61424893,59120.0,59119.0,0.10202411]
[1723662416154,0.61424893,59120.0,59119.0,0.169436]
[1723662421760,0.61424893,59120.0,59119.0,0.309436]
[1723662423460,0.80880593,59120.0,59119.0,0.21441189]
[1723662423760,0.80880593,59120.0,59119.0,0.0575577]
[1723662423951,0.80880593,59120.0,59119.0,0.05755996]
[1723662424151,0.80880593,59120.0,59119.0,0.007]
[1723662424347,0.80880593,59120.0,59115.0,0.05056164]
[1723662424348,2.28842395,59120.0,59115.0,0.05056164]
[1723662424555,0.084562,59116.0,59114.0,0.05056244]
[1723662424754,0.084562,59116.0,59109.0,0.084571]
[1723662424755,0.084565,59114.0,59113.0,0.05056244]
[1723662424956,0.08457,59111.0,59110.0,0.06766565]
[1723662425159,0.08457,59111.0,59110.0,0.08482476]
[1723662425355,0.33757941,59111.0,59110.0,0.08482476]
[1723662426558,0.33757941,59111.0,59110.0,0.09382476]
[1723662427658,0.44757941,59111.0,59110.0,0.09382476]
[1723662428059,0.33757941,59111.0,59110.0,0.09382476]
[1723662430361,0.33757941,59111.0,59110.0,0.26206586]
[1723662430767,0.33757941,59111.0,59110.0,0.09382476]
[1723662431355,0.33757941,59111.0,59110.0,0.26225703]
[1723662432565,0.44757941,59111.0,59110.0,0.17786849]
[1723662432954,0.80837941,59111.0,59110.0,0.00925376]
[1723662433972,0.44757941,59111.0,59110.0,0.26281025]
[1723662434265,0.33757941,59111.0,59110.0,0.17841478]
[1723662434469,0.33757941,59111.0,59110.0,0.17804969]
[1723662435165,0.33757941,59111.0,59110.0,0.17304969]
[1723662435166,0.46757941,59111.0,59110.0,0.17304969]
[1723662435356,0.46757941,59111.0,59101.0,0.29274776]
[1723662435357,0.084577,59106.0,59105.0,0.10123003]
[1723662435664,0.08458,59104.0,59103.0,0.08446167]
[1723662435853,0.11,59104.0,59101.0,0.08460943]
[1723662436053,0.36374369,59104.0,59101.0,0.08460943]
[1723662436254,0.084581,59103.0,59102.0,0.08446167]
[1723662436462,0.084582,59102.0,59101.0,0.00014776]
[1723662436660,0.194582,59102.0,59101.0,0.08457957]
[1723662436863,0.44747465,59102.0,59101.0,0.08457957]
[1723662437461,0.44747465,59102.0,59101.0,0.00014776]
[1723662438859,0.44847465,59102.0,59101.0,0.00514776]
[1723662439058,0.44847465,59102.0,59101.0,0.00914776]
[1723662440271,0.33847465,59102.0,59101.0,0.09373176]
[1723662440859,0.44847465,59102.0,59101.0,0.09373176]
[1723662441769,0.33847465,59102.0,59101.0,0.09373176]
[1723662442968,0.25389265,59102.0,59101.0,0.09373176]
[1723662443177,0.25389265,59102.0,59101.0,0.26373176]
[1723662445372,0.25389265,59102.0,59101.0,0.34816357]
[1723662445574,0.36389265,59102.0,59101.0,0.17816357]
[1723662445769,0.44847465,59102.0,59101.0,0.09373176]
[1723662446364,0.33847465,59102.0,59101.0,0.09373176]
[1723662446670,0.25389265,59102.0,59101.0,0.39871077]
[1723662447371,0.25389265,59102.0,59101.0,0.31427896]
[1723662447565,0.25389265,59102.0,59101.0,0.39861895]
[1723662447873,0.25389265,59102.0,59101.0,0.39857254]
[1723662448370,0.25389265,59102.0,59101.0,0.31423255]
[1723662450763,0.76389265,59102.0,59098.0,0.08225058]
[1723662450967,0.084588,59098.0,59097.0,0.05087919]
[1723662451168,0.561776,59098.0,59097.0,0.00025376]
[1723662451385,1.80709109,59098.0,59097.0,0.00025376]
[1723662451579,1.72250309,59098.0,59097.0,0.00025376]
[1723662451874,1.72262798,59098.0,59097.0,0.00025376]
[1723662452171,1.72262798,59098.0,59097.0,0.00325376]
[1723662452568,1.72262798,59098.0,59097.0,0.00025376]
[1723662452776,1.73162798,59098.0,59097.0,0.00125376]
[1723662453271,1.73662798,59098.0,59097.0,0.00225376]
[1723662454766,1.73762798,59098.0,59097.0,0.00125376]
[1723662455159,1.73162798,59098.0,59097.0,0.00025376]
[1723662455360,1.74162798,59098.0,59097.0,0.00125376]
[1723662455569,1.74062798,59098.0,59097.0,0.00125376]
[1723662456073,1.34062798,59098.0,59097.0,0.00125376]
[1723662456264,1.74062798,59098.0,59097.0,0.00125376]
[1723662456461,1.74162798,59098.0,59097.0,0.00125376]
[1723662457273,1.74062798,59098.0,59097.0,0.00125376]
[1723662458174,1.34062798,59098.0,59097.0,0.00125376]
[1723662458368,1.44802798,59098.0,59097.0,0.00125376]
[1723662458767,1.43902798,59098.0,59097.0,0.00025376]
[1723662458972,1.44902798,59098.0,59097.0,0.00125376]
[1723662459476,1.44802798,59098.0,59097.0,0.00125376]
[1723662460377,1.43802798,59098.0,59097.0,0.00025376]
[1723662460673,1.44802798,59098.0,59097.0,0.00125376]
[1723662461067,1.44802798,59098.0,59097.0,0.00225376]
[1723662461475,1.74062798,59098.0,59097.0,0.00225376]
[1723662461876,1.82521598,59098.0,59097.0,0.00225376]
[1723662463675,0.253785,59093.0,59092.0,0.05062543]
[1723662463864,0.084598,59091.0,59086.0,0.05059267]
[1723662464173,0.169222,59082.0,59081.0,0.05059267]
[1723662464363,0.169224,59081.0,59080.0,0.05059267]
[1723662464567,0.2926,59080.0,59079.0,0.05059267]
[1723662464775,0.084615,59079.0,59078.0,0.05059267]
[1723662464978,0.194615,59079.0,59078.0,0.05059267]
[1723662465171,1.03966143,59079.0,59078.0,0.05059267]
[1723662465365,0.084618,59077.0,59075.0,0.00025376]
[1723662465569,0.530038,59076.0,59075.0,0.00025376]
[1723662465869,0.530038,59076.0,59061.0,0.46203003]
[1723662465870,0.084628,59070.0,59068.0,0.05059267]
[1723662466065,0.3608,59069.0,59067.0,0.05059267]
[1723662466275,0.084632,59067.0,59066.0,0.05059267]
[1723662466469,0.61745725,59069.0,59067.0,0.084632]
[1723662466676,0.3608,59069.0,59067.0,0.084632]
[1723662466871,0.25461475,59068.0,59065.0,0.05059267]
[1723662467076,0.084635,59065.0,59064.0,0.05059267]
[1723662467375,0.084637,59064.0,59062.0,0.05099045]
[1723662467575,0.084637,59064.0,59062.0,0.00039778]
[1723662467768,0.33925275,59063.0,59062.0,0.00039778]
[1723662468169,0.084638,59063.0,59062.0,0.00039778]
[1723662468369,0.33972859,59063.0,59062.0,0.05086329]
[1723662469076,0.25709059,59063.0,59062.0,0.08803778]
[1723662469775,0.25709059,59063.0,59062.0,1.13595778]
[1723662469977,0.25709059,59063.0,59062.0,1.20345815]
[1723662470374,0.25709059,59063.0,59062.0,1.13595778]
[1723662470682,0.25709059,59063.0,59062.0,1.20319766]
[1723662470871,0.25709059,59063.0,59062.0,1.13595778]
[1723662471273,0.3608,59076.0,59073.0,0.084624]
[1723662471274,0.084621,59075.0,59073.0,0.084624]
[1723662471573,0.26614033,59074.0,59073.0,0.084624]
[1723662471774,0.25536845,59074.0,59073.0,0.084624]
[1723662472279,0.25536845,59074.0,59069.0,0.084629]
[1723662472576,0.084626,59072.0,59066.0,0.41122882]
[1723662473084,0.00425376,59074.0,59073.0,0.084624]
[1723662473478,0.26054262,59074.0,59073.0,0.084624]
[1723662474775,0.25754262,59074.0,59073.0,0.090624]
[1723662474974,0.25354262,59074.0,59073.0,0.090624]
[1723662475577,0.25454262,59074.0,59073.0,0.092624]
[1723662476576,0.25354262,59074.0,59073.0,0.090624]
[1723662476779,0.25454262,59074.0,59073.0,0.091624]
[1723662477287,0.46916462,59074.0,59073.0,0.007]
[1723662478279,0.084628,59071.0,59069.0,0.05042882]
[1723662478479,0.084628,59071.0,59070.0,0.05042882]
[1723662478885,0.33994796,59071.0,59070.0,0.05042882]
[1723662479186,1.24399996,59071.0,59066.0,0.06723842]
[1723662479484,0.2926,59067.0,59065.0,0.05051215]
[1723662479680,0.084637,59064.0,59062.0,0.13554993]
[1723662479875,0.084638,59063.0,59062.0,0.13554993]
[1723662480086,0.33863869,59063.0,59062.0,0.08503778]
[1723662481475,0.33963869,59063.0,59062.0,0.09003778]
[1723662482690,0.34063869,59063.0,59062.0,0.09103778]
[1723662484292,0.25600069,59063.0,59062.0,0.09103778]
[1723662484903,0.53527669,59063.0,59062.0,0.00639778]
[1723662485191,0.084645,59058.0,59054.0,0.05054613]
[1723662485391,0.3608,59055.0,59051.0,0.084654]
[1723662485590,0.3608,59055.0,59052.0,0.05054097]
[1723662485787,0.3608,59055.0,59051.0,0.084654]
[1723662485788,0.25430427,59054.0,59053.0,0.05054097]
[1723662485985,0.33909488,59054.0,59053.0,0.13519297]
[1723662486386,0.33909488,59054.0,59053.0,0.084652]
[1723662486990,0.33909488,59054.0,59053.0,0.13519993]
[1723662487291,0.34009488,59054.0,59053.0,0.05554793]
[1723662487490,0.34009488,59054.0,59053.0,0.005]
[1723662489092,0.34109488,59054.0,59053.0,0.005]
[1723662489694,0.34109488,59054.0,59053.0,0.089653]
[1723662489995,0.34109488,59054.0,59053.0,0.14020093]
[1723662490292,0.35151913,59054.0,59053.0,0.14020093]
[1723662490493,0.35151913,59054.0,59053.0,0.14021901]
[1723662491491,0.35151913,59054.0,59053.0,0.089653]
[1723662491997,0.26686813,59054.0,59053.0,0.089653]
[1723662492289,0.25644388,59054.0,59053.0,0.089653]
[1723662493398,0.25644388,59054.0,59053.0,0.15709248]
[1723662493591,0.25644388,59054.0,59053.0,0.089653]
[1723662493896,0.25644388,59054.0,59053.0,0.17389358]
[1723662494097,0.25644388,59054.0,59053.0,0.34341988]
[1723662494486,0.25644388,59054.0,59053.0,0.1745263]
[1723662494889,0.25644388,59054.0,59053.0,0.25888388]
[1723662495196,0.25644388,59054.0,59053.0,0.089653]
[1723662496382,0.25644388,59054.0,59053.0,0.17401058]
[1723662497113,0.25644388,59054.0,59053.0,0.16901058]
[1723662497982,0.25544388,59054.0,59053.0,0.16901058]
[1723662498186,0.25644388,59054.0,59053.0,0.16901058]
[1723662498384,0.25644388,59054.0,59053.0,0.084653]
[1723662498700,0.25644388,59054.0,59053.0,0.16901058]
[1723662499591,0.25544388,59054.0,59053.0,0.084653]
[1723662499795,0.25644388,59054.0,59053.0,0.084653]
[1723662501299,0.25644388,59054.0,59053.0,0.16901058]
[1723662501490,0.25644388,59054.0,59053.0,0.084653]
[1723662501691,0.25544388,59054.0,59053.0,0.084653]
[1723662502000,0.25644388,59054.0,59053.0,0.084653]
[1723662504196,0.25544388,59054.0,59053.0,0.084653]
[1723662504589,0.25644388,59054.0,59053.0,0.084653]
[1723662506500,0.25644388,59054.0,59053.0,0.2544117]
[1723662507300,0.25644388,59054.0,59053.0,0.16901058]
[1723662507493,0.25644388,59054.0,59053.0,0.17005952]
[1723662509400,0.34109488,59054.0,59053.0,0.17005952]
[1723662509795,0.34109488,59054.0,59053.0,0.08540652]
[1723662509996,0.46109488,59054.0,59053.0,0.08540652]
[1723662511299,0.084658,59049.0,59048.0,0.08473664]
[1723662511506,0.565458,59049.0,59048.0,0.08473664]
[1723662511695,1.41382184,59049.0,59048.0,0.00016994]
[1723662511897,1.81382184,59049.0,59048.0,0.00016994]
[1723662512498,1.86432324,59049.0,59048.0,0.06783546]
[1723662512703,1.81582184,59049.0,59048.0,0.00016994]
[1723662513097,1.73116384,59049.0,59048.0,0.00016994]
[1723662513293,0.82312384,59049.0,59048.0,0.00016994]
[1723662514203,0.90778184,59049.0,59048.0,0.00016994]
[1723662514710,0.82312384,59049.0,59048.0,0.00016994]
[1723662516002,0.83396159,59049.0,59048.0,0.00016994]
[1723662516202,0.91861959,59049.0,59048.0,0.00016994]
[1723662516403,0.91861959,59049.0,59040.0,0.10123003]
[1723662516404,0.084663,59046.0,59043.0,0.0845667]
[1723662516612,0.08467,59041.0,59040.0,0.1692377]
[1723662516812,0.08481402,59041.0,59040.0,0.25189188]
[1723662517011,0.33884576,59041.0,59040.0,0.25189188]
[1723662517412,0.33884576,59041.0,59040.0,0.25181541]
[1723662517713,0.33984576,59041.0,59040.0,0.16732518]
[1723662517912,0.33984576,59041.0,59040.0,0.16727315]
[1723662518298,0.25517576,59041.0,59040.0,0.16727315]
[1723662518698,0.25517576,59041.0,59040.0,0.25174786]
[1723662518909,0.084671,59040.0,59039.0,0.09505181]
[1723662519119,0.084673,59039.0,59038.0,0.084674]
[1723662519308,0.084673,59039.0,59038.0,0.09525641]
[1723662519609,0.33900644,59039.0,59038.0,0.09525641]
[1723662520211,0.34000644,59039.0,59038.0,0.09525641]
[1723662520411,0.70080644,59039.0,59038.0,0.09525641]
[1723662521209,0.70080644,59039.0,59038.0,0.084674]
[1723662521422,0.70080644,59039.0,59038.0,0.15222592]
[1723662521620,0.70080644,59039.0,59038.0,0.084674]
[1723662521621,0.70180644,59039.0,59038.0,0.084674]
[1723662523011,0.61713344,59039.0,59038.0,0.084674]
[1723662523417,0.61713344,59039.0,59038.0,0.224674]
[1723662523619,0.25633344,59039.0,59038.0,0.732834]
[1723662523807,0.25633344,59039.0,59038.0,0.81567195]
[1723662524013,0.25633344,59039.0,59038.0,0.39218595]
[1723662524817,0.25633344,59039.0,59038.0,0.30751195]
[1723662525209,0.25633344,59039.0,59038.0,0.224674]
[1723662525416,0.34100644,59039.0,59038.0,0.084674]
[1723662525616,0.34100644,59039.0,59035.0,0.2527]
[1723662525617,0.61713344,59039.0,59036.0,0.08438231]
[1723662525815,0.084678,59035.0,59034.0,0.2778]
[1723662526220,0.33819306,59035.0,59034.0,0.2778]
[1723662526422,0.33819306,59035.0,59034.0,0.34530534]
[1723662527518,0.33819306,59035.0,59034.0,0.36248]
[1723662527720,0.33919306,59035.0,59034.0,0.36248]
[1723662529232,0.34019306,59035.0,59034.0,0.36248]
[1723662531233,0.34019306,59035.0,59034.0,0.44686231]
[1723662531442,0.25551506,59035.0,59034.0,0.083052]
[1723662531737,0.25551506,59035.0,59022.0,0.3774856]
[1723662531738,0.084682,59033.0,59032.0,0.084681]
[1723662532229,0.084682,59033.0,59027.0,0.3608]
[1723662532230,0.084687,59029.0,59028.0,0.16907089]
[1723662532423,0.08482293,59029.0,59028.0,0.084688]
[1723662532628,0.33767009,59029.0,59028.0,0.084688]
[1723662533828,0.33867009,59029.0,59028.0,0.084688]
[1723662534025,0.084691,59026.0,59025.0,0.08438289]
[1723662534233,0.084691,59026.0,59022.0,0.0001896]
[1723662534234,0.084694,59024.0,59023.0,0.08438289]
[1723662534537,0.084696,59023.0,59022.0,0.0001896]
[1723662535041,0.33771687,59023.0,59022.0,0.0001896]
[1723662535224,0.54241287,59023.0,59022.0,0.0001896]
[1723662535426,0.42241287,59023.0,59022.0,0.05082832]
[1723662535729,1.05069287,59023.0,59022.0,0.0001896]
[1723662535929,0.084701,59019.0,59017.0,0.05063872]
[1723662536137,0.084701,59019.0,59016.0,0.05063872]
[1723662536138,0.084704,59017.0,59016.0,0.05063872]
[1723662536536,0.084707,59015.0,59014.0,0.05063872]
[1723662537033,0.3389155,59015.0,59014.0,0.05063872]
[1723662537436,0.084708,59014.0,59013.0,0.05063872]
[1723662537834,0.084712,59012.0,59010.0,0.06751287]
[1723662538037,0.084713,59011.0,59010.0,0.06751287]
[1723662538335,0.084713,59011.0,58994.0,0.2926]
[1723662538336,0.084716,59009.0,59008.0,0.05058227]
[1723662538534,0.084718,59007.0,59005.0,0.05058709]
[1723662538736,0.25499767,59009.0,59008.0,0.084717]
[1723662539130,0.3608,59011.0,59010.0,0.084714]
[1723662539329,0.3608,59011.0,59010.0,0.13526605]
[1723662539638,0.61425472,59011.0,59010.0,0.13525837]
[1723662540540,0.61525472,59011.0,59010.0,0.13525837]
[1723662540839,0.61525472,59011.0,59008.0,0.05054437]
[1723662540840,0.69996772,59011.0,59008.0,0.05054437]
[1723662541138,0.084715,59010.0,59008.0,0.05054437]
[1723662541336,0.61525472,59011.0,59004.0,0.06751287]
[1723662541337,0.084717,59008.0,59007.0,0.05054437]
[1723662541640,0.25463179,59008.0,59004.0,0.05054437]
[1723662541841,0.25463179,59008.0,59003.0,0.05054437]
[1723662542042,0.25463179,59010.0,59009.0,0.084716]
[1723662542227,0.002,59011.0,59010.0,0.084714]
[1723662542633,0.25509369,59011.0,59010.0,0.084714]
[1723662543043,0.25409369,59011.0,59010.0,0.084714]
[1723662543636,0.25309369,59011.0,59010.0,0.084714]
[1723662543838,0.25409369,59011.0,59010.0,0.445514]
[1723662544231,0.002,59011.0,59010.0,0.445514]
[1723662544631,0.25550449,59011.0,59010.0,0.445514]
[1723662545841,0.25550449,59011.0,59010.0,0.084714]
[1723662546735,0.25550449,59011.0,59010.0,0.13525837]
[1723662547342,0.25550449,59011.0,59010.0,0.084714]
[1723662547843,0.25550449,59011.0,59010.0,0.13525837]
[1723662548234,0.25550449,59011.0,59010.0,0.084714]
[1723662548834,0.34021749,59011.0,59010.0,0.084714]
[1723662549743,0.34021749,59011.0,59010.0,0.13525837]
[1723662549945,0.34021749,59011.0,59010.0,0.084714]
[1723662550138,0.34021749,59011.0,59010.0,0.13525837]
[1723662550538,0.34021749,59011.0,59005.0,0.06751287]
[1723662550539,0.084714,59010.0,59009.0,0.05054437]
[1723662550941,0.33888089,59010.0,59008.0,0.05054437]
[1723662551143,0.084716,59009.0,59007.0,0.13526237]
[1723662551347,0.084716,59009.0,59003.0,0.05054437]
[1723662551348,0.084721,59005.0,59003.0,0.05054437]
[1723662551540,0.084721,59005.0,58998.0,0.05054437]
[1723662551541,0.084729,59000.0,58998.0,0.05054437]
[1723662551846,0.084729,59000.0,58994.0,0.06751287]
[1723662551847,0.084734,58996.0,58994.0,0.05054437]
[1723662552146,0.3404162,58995.0,58994.0,0.01067205]
[1723662552343,0.3404162,58995.0,58994.0,0.13524372]
[1723662552532,0.3404112,58998.0,58994.0,0.084737]
[1723662552736,0.084734,58997.0,58995.0,0.05050838]
[1723662552937,0.084734,58997.0,58994.0,0.13524538]
[1723662553142,0.34033819,58997.0,58995.0,0.05050838]
[1723662553445,0.24363867,58999.0,58998.0,0.084731]
[1723662553446,0.00013867,58999.0,58998.0,0.084731]
[1723662553746,0.25574286,58999.0,58998.0,0.084731]
[1723662554137,0.25574286,58999.0,58998.0,0.13523938]
[1723662554348,0.25574286,58999.0,58998.0,0.084731]
[1723662554647,0.25574286,58999.0,58998.0,0.13523938]
[1723662554839,0.25674286,58999.0,58998.0,0.13523938]
[1723662555235,0.25674286,58999.0,58998.0,0.084731]
[1723662556132,0.25774286,58999.0,58998.0,0.084731]
[1723662556744,0.25774286,58999.0,58998.0,0.15224387]
[1723662556939,0.25774286,58999.0,58998.0,0.084731]
[1723662558354,0.25774286,58999.0,58998.0,0.15212068]
[1723662558542,0.25774286,58999.0,58998.0,0.084731]
[1723662560947,0.34247286,58999.0,58998.0,0.084731]
[1723662561154,0.34247286,58999.0,58995.0,0.3608]
[1723662561155,0.084734,58996.0,58995.0,0.3608]
[1723662561447,0.084737,58994.0,58993.0,0.01081709]
[1723662561646,0.084739,58993.0,58990.0,0.08438289]
[1723662561856,0.084741,58992.0,58989.0,0.42084088]
[1723662562150,0.33917938,58992.0,58989.0,0.42084088]
[1723662562348,0.084741,58992.0,58989.0,0.42084088]
[1723662562743,0.25480475,58991.0,58990.0,0.084743]
[1723662563048,0.084738,58994.0,58991.0,0.08474]
[1723662563250,0.001,58992.0,58991.0,0.16912289]
[1723662563446,0.001,58992.0,58991.0,0.08474]
[1723662563652,0.25587256,58992.0,58991.0,0.08474]
[1723662564042,0.25687256,58992.0,58991.0,0.08474]
[1723662564643,0.25687256,58992.0,58991.0,0.26550311]
[1723662564837,0.25587256,58992.0,58991.0,0.26550311]
[1723662565238,0.34061256,58992.0,58991.0,0.26551016]
[1723662565444,0.34061256,58992.0,58991.0,0.16912289]
[1723662565649,0.34061256,58992.0,58991.0,0.26551562]
[1723662565851,0.34161256,58992.0,58991.0,0.26551562]
[1723662566052,0.34161256,58992.0,58991.0,0.18077562]
[1723662566258,0.84176985,58992.0,58991.0,0.04843162]
[1723662566442,1.26558985,58992.0,58988.0,0.05068088]
[1723662566640,1.26558985,58992.0,58986.0,0.05068088]
[1723662566641,0.169494,58987.0,58986.0,0.05068088]
[1723662566845,0.77352231,58987.0,58976.0,0.08438289]
[1723662567045,0.169506,58983.0,58982.0,0.04377343]
[1723662567245,0.084773,58969.0,58968.0,0.10123003]
[1723662567551,0.084773,58969.0,58963.0,0.08478]
[1723662567552,0.25407791,58969.0,58965.0,0.084779]
[1723662567746,0.25407791,58969.0,58963.0,0.08438289]
[1723662567948,0.00025421,58974.0,58973.0,0.084767]
[1723662568144,0.25511087,58971.0,58970.0,0.084771]
[1723662568349,0.08523477,58974.0,58970.0,0.084771]
[1723662568548,0.25511087,58973.0,58971.0,0.08477]
[1723662568848,0.08523477,58974.0,58973.0,0.084767]
[1723662568849,0.00046877,58974.0,58973.0,0.084767]
[1723662569057,0.3608,58986.0,58973.0,0.5058]
[1723662569247,0.3608,58986.0,58985.0,0.08475]
[1723662569443,0.37148536,58986.0,58985.0,0.08475]
[1723662569744,0.62604389,58986.0,58985.0,0.08475]
[1723662570154,0.6261786,58986.0,58985.0,0.08475]
[1723662570547,0.6271786,58986.0,58985.0,0.08475]
[1723662571255,0.6271786,58986.0,58985.0,0.44555]
[1723662571256,0.25569324,58986.0,58985.0,0.44555]
[1723662571555,0.25469324,58986.0,58985.0,0.44555]
[1723662571755,0.25569324,58986.0,58985.0,0.44555]
[1723662572460,0.25669324,58986.0,58985.0,0.44555]
[1723662573255,0.25669324,58986.0,58985.0,0.3608]
[1723662573565,0.34144224,58986.0,58985.0,0.3608]
[1723662573950,0.34144224,58986.0,58985.0,0.08475]
[1723662574153,0.084751,58985.0,58983.0,0.084752]
[1723662574664,0.25669324,58986.0,58980.0,0.37189011]
[1723662574665,0.00213471,58986.0,58985.0,0.08475]
[1723662574958,0.25795932,58986.0,58985.0,0.08475]
[1723662575147,0.25795932,58986.0,58978.0,0.08391412]
[1723662575148,0.254277,58979.0,58978.0,0.08391412]
[1723662575348,0.77352374,58979.0,58967.0,0.3608]
[1723662575649,0.084786,58960.0,58956.0,0.322991]
[1723662575851,0.0001276,58959.0,58956.0,0.2382]
[1723662576054,0.2557478,58959.0,58956.0,0.2382]
[1723662576245,0.2557478,58959.0,58958.0,0.084789]
[1723662576246,0.0001276,58959.0,58958.0,0.084789]
[1723662576652,0.25612408,58959.0,58954.0,0.084794]
[1723662576849,0.084793,58955.0,58952.0,0.3608]
[1723662577255,0.084796,58953.0,58952.0,0.3608]
[1723662577457,0.3608,58953.0,58946.0,0.084805]
[1723662577656,0.61384139,58953.0,58946.0,0.084805]
[1723662578360,0.084803,58948.0,58944.0,0.084807]
[1723662578560,0.00013786,58947.0,58944.0,0.084807]
[1723662578747,0.25622622,58947.0,58944.0,0.084807]
[1723662579156,0.25622622,58947.0,58945.0,0.084807]
[1723662579649,0.25622622,58947.0,58946.0,0.084806]
[1723662579854,0.25722622,58947.0,58946.0,0.084806]
[1723662580257,0.25822622,58947.0,58946.0,0.445606]
[1723662583256,0.25822622,58947.0,58946.0,1.439332]
[1723662583458,0.25822622,58947.0,58946.0,1.354526]
[1723662584356,0.25822622,58947.0,58946.0,1.439332]
[1723662584960,0.001,58947.0,58946.0,1.439332]
[1723662585163,0.00025443,58951.0,58950.0,0.0848]
[1723662585556,0.25520912,58951.0,58950.0,0.0848]
[1723662586065,0.25538439,58951.0,58950.0,0.0848]
[1723662586455,0.25638439,58951.0,58950.0,0.5726]
[1723662586954,0.25638439,58951.0,58950.0,0.7326]
[1723662587463,0.25738439,58951.0,58950.0,0.7336]
[1723662590972,0.25638439,58951.0,58950.0,0.7336]
[1723662591160,0.25738439,58951.0,58950.0,0.7356]
[1723662597868,0.25738439,58951.0,58950.0,1.64452]
[1723662598363,0.25738439,58951.0,58950.0,1.34305835]